Cogmind - Beta 12 @@@ ROGUE MODE // 2024.01.16 @ 21:32:46 Player: Luminiferous Result: Destroyed by D-53 Grenadier with Mini Grenade Launcher Performance ------------- Evolutions (0) 0 Regions Visited (4) 800 Robots Destroyed (21) 105 Value Destroyed (499) 499 Prototype IDs (3) 60 Alien Tech Used (0) 0 Bonus (427) 427 TOTAL SCORE: 1891 Bonus ------- Follower Combat Kills 127 Aligned with FarCom 300 Cogmind --------- Core Integrity 0/250 Matter 210/300 Energy 100/100 System Corruption 3% Temperature Cool (0) Movement Core (1350) Ox26 Location -9/Mines Parts ------- > --- POWER (1) -------- (None) > --- PROPULSION (2) --- (None) > --- UTILITY (2) ------ Improved Heat Sink Huge Storage Unit > --- WEAPON (2) ------- (None) > --- INVENTORY (25) --- Light Ion Engine Light Ion Engine Light Angular Momentum Engine Compact Wheel Compact Wheel Flight Unit Flight Unit Flight Unit Makeshift Flight Unit Improved Heat Sink Medium Storage Unit Large Storage Unit High-capacity Storage Unit Weight Redist. System Light Armor Plating Hardened Light Armor Plating Hardened Light Armor Plating Medium Laser Medium Laser Medium Laser Particle Gun AWS/Thermal Light Cannon Mining Claw Peak State ------------ > --- POWER ------------ Ion Engine > --- PROPULSION ------- Wheel Wheel > --- UTILITY ---------- Improved Heat Sink Huge Storage Unit > --- WEAPON ----------- AWS/Gauss > --- INVENTORY -------- Light Ion Engine Light Ion Engine Light Ion Engine Light Angular Momentum Engine Compact Wheel Compact Wheel Flight Unit Flight Unit Makeshift Flight Unit Improved Heat Sink Improved Heat Sink High-capacity Storage Unit Weight Redist. System Light Armor Plating Hardened Light Armor Plating Hardened Light Armor Plating Medium Laser Medium Laser Medium Laser Particle Gun Light Cannon Grenade Launcher Mining Claw [Rating: 26] Favorites ----------- Power Ion Engine Engine Ion Engine Propulsion Wheel Leg Aluminum Leg Wheel Wheel Utility Improved Heat Sink Device Improved Heat Sink Storage Huge Storage Unit Weapon Particle Gun Energy Gun Particle Gun Ballistic Gun Light Assault Rifle Ballistic Cannon Light Cannon Launcher Grenade Launcher Build | -11 -10 -10 -10 -9 ------- Run | Jun Mat Min Exi Min Slots Evolved . | . . . . . Power . | . . . . . Propulsion . | . . . . . Utility . | . . . . . Weapon . | . . . . . Parts Attached 28 | 7 12 3 5 1 Power 2 | 1 . . 1 . Engine 2 | 1 . . 1 . Core . | . . . . . Reactor . | . . . . . Propulsion 5 | 3 2 . . . Treads . | . . . . . Leg 1 | 1 . . . . Wheel 4 | 2 2 . . . Hover . | . . . . . Flight . | . . . . . Utility 6 | 1 3 . 2 . Device 4 | . 2 . 2 . Storage 2 | 1 1 . . . Processor . | . . . . . Hackware . | . . . . . Protection . | . . . . . Artifact . | . . . . . Weapon 15 | 2 7 3 2 1 Energy Gun 7 | 2 3 1 1 . Energy Cannon . | . . . . . Ballistic Gun 2 | . . 1 1 . Ballistic Cannon 4 | . 3 1 . . Launcher 2 | . 1 . . 1 Special Weapon . | . . . . . Impact Weapon . | . . . . . Slashing Weapon . | . . . . . Piercing Weapon . | . . . . . Special Melee Weapon . | . . . . . Unidentified Prototypes 3 | . . . 3 . Parts Lost 4 | . . . . 4 Power 1 | . . . . 1 Propulsion 2 | . . . . 2 Utility . | . . . . . Weapon 1 | . . . . 1 Highest Loss Streak 4 | . . . . 4 To Critical Strikes . | . . . . . Average Slot Usage (%) 89 | . 94 99 69 70 Engine 13 | . 14 14 14 9 Wheel 26 | . 25 28 28 23 Device 12 | . 11 14 12 14 Storage 14 | . 14 14 14 14 Energy Gun 11 | . 15 16 . . Ballistic Cannon 6 | . 12 1 . . Launcher 3 | . . 9 . 9 Naked Turns . | . . . . . Heaviest Build 92 | 14 92 92 86 87 Greatest Support 20 | 20 20 20 20 20 Greatest Overweight (x) 8 | 2 4 4 4 8 Average Overweight (x) 3 | . 1 4 4 4 Largest Inventory Capacity 25 | 8 25 25 25 25 Average Capacity 20 | 7 16 25 25 25 Most Carried 25 | 8 15 23 25 25 Average Carried 15 | 5 9 18 23 24 Final Capacity 25 | 8 25 25 25 25 Final Carried 25 | 4 15 21 25 25 Class Distribution -------------------- 100% | Mutant Dominant Class ---------------- Mutant | -10/Materials Mutant | -10/Mines Mutant | -10/Exiles Mutant | -9/Mines Resources | -11 -10 -10 -10 -9 ----------- Run | Jun Mat Min Exi Min Matter Collected 638 | 190 337 99 . 12 Remotely . | . . . . . Salvage Created 611 | . 487 101 . 23 Parts 42 | . 37 1 . 4 Haulers Intercepted 1 | . 1 . . . Recyclers Shooed . | . . . . . Parts Field Recycled . | . . . . . Retrieved Matter . | . . . . . Parts Self-Destructed . | . . . . . Prevented . | . . . . . Kills | -11 -10 -10 -10 -9 ------- Run | Jun Mat Min Exi Min Combat Hostiles Destroyed 15 | . 10 2 . 3 Guns 6 | . 6 . . . Cannons 6 | . 4 2 . . AOE 3 | . . . . 3 Classes Destroyed 6 | . 4 2 . . Builder 2 | . 2 . . . Hauler 1 | . 1 . . . Recycler 1 | . . 1 . . Watcher 2 | . 2 . . . Swarmer 5 | . . 2 . 3 Grunt 10 | . 10 . . . Best Kill Streak 4 | . 4 3 . 3 Combat Bots Only 3 | . 3 2 . 3 Max Kills in Single Turn 1 | . 1 1 . 1 Gunslinging . | . . . . . Exploded 1 | . . . . 1 Melee . | . . . . . Uniques/NPCs Destroyed . | . . . . . Combat | -11 -10 -10 -10 -9 -------- Run | Jun Mat Min Exi Min Damage Taken 648 | . 256 90 . 302 Core 255 | . 112 9 . 134 Absorbed by Shields . | . . . . . Regen/Repaired (Parts) 54 | . 54 . . . Core Remaining (%) 100 | 100 . . . . Volleys Fired 42 | . 32 6 . 4 Largest 2 | . 2 2 . 1 Hottest 100 | . 100 100 . 30 Shots Fired 82 | . 65 13 . 4 Gun 40 | . 33 7 . . Cannon 38 | . 32 6 . . Launcher 4 | . . . . 4 Special . | . . . . . Kinetic 38 | . 32 6 . . Thermal 40 | . 33 7 . . Explosive 4 | . . . . 4 Electromagnetic . | . . . . . Robot Hit Streak 9 | . 9 4 . 2 Robot Miss Streak 5 | . 4 5 . 2 Penetration Max . | . . . . . Secondary Targets . | . . . . . Shots Hit Robots 41 | . 34 5 . 2 Core Hits 24 | . 19 3 . 2 Critical Kills . | . . . . . Critical Parts Destroyed . | . . . . . Critical Strikes . | . . . . . Melee Attacks . | . . . . . Impact . | . . . . . Slashing . | . . . . . Piercing . | . . . . . Sneak Attacks . | . . . . . Combat Hostiles . | . . . . . Follow-up Attacks . | . . . . . Damage Inflicted 832 | . 597 68 . 167 Guns 281 | . 281 . . . Cannons 384 | . 316 68 . . Explosions 167 | . . . . 167 Melee . | . . . . . Ramming . | . . . . . Kinetic 384 | . 316 68 . . Thermal 281 | . 281 . . . Explosive 167 | . . . . 167 Electromagnetic . | . . . . . Impact . | . . . . . Slashing . | . . . . . Piercing . | . . . . . Highest Corruption 3 | . 3 3 3 3 Average Corruption 2 | . 2 3 3 3 Corruption Purged . | . . . . . Corruption Blocked . | . . . . . Effects 39 | . 16 14 8 1 Message Errors 11 | . 5 2 4 . Matter Fused 9 | . 2 4 3 . Heat Flow Errors 4 | . 2 2 . . Energy Discharges 4 | . 2 2 . . Parts Fused 2 | . 1 1 . . Data Loss (minor) 2 | . 1 . . 1 Data Loss (major) 3 | . 1 2 . . Misfires 2 | . 1 1 . . Alerts 2 | . 1 . 1 . Overload Shots . | . . . . . Overflow Damage 26 | . 9 . . 17 Projectiles 9 | . 9 . . . Explosions 17 | . . . . 17 Melee . | . . . . . Knockbacks 6 | . 5 1 . . Impact . | . . . . . Kinetic 5 | . 4 1 . . Secondary 1 | . 1 . . . Self-Inflicted Damage . | . . . . . Shots . | . . . . . Rammed . | . . . . . Targets Rammed . | . . . . . Kicked . | . . . . . Crushed . | . . . . . Highest Temperature 234 | . 204 234 . . Average Temperature 48 | . 38 107 . . Received Heat Transfer 135 | . 120 15 . . Siege Activations . | . . . . . Robots Corrupted . | . . . . . Combat Hostiles . | . . . . . Parts Fried . | . . . . . Impact Corruptions . | . . . . . Robots Melted . | . . . . . Combat Hostiles . | . . . . . Parts Melted . | . . . . . Heat Transferred 703 | . 703 . . . Parts Sabotaged . | . . . . . Parts Stolen . | . . . . . Parts Stripped . | . . . . . Power Chain Reactions . | . . . . . Missiles Intercepted . | . . . . . Alert | -11 -10 -10 -10 -9 ------- Run | Jun Mat Min Exi Min Peak Influence 269 | . 269 109 . 107 Initial 31 | . . 31 . . Average 92 | . 132 45 . 86 Maximum Alert Level 1 | . 1 . . . Low Security (%) 86 | 100 76 100 . 100 Level 1 13 | . 23 . . . Level 2 . | . . . . . Level 3 . | . . . . . Level 4 . | . . . . . Level 5 . | . . . . . High Security . | . . . . . Max Security . | . . . . . Squads Dispatched 4 | . 4 . . . Investigation . | . . . . . Extermination . | . . . . . Reinforcement 4 | . 4 . . . Assault . | . . . . . Garrison . | . . . . . Intercept . | . . . . . Searches Triggered . | . . . . . Construction Impeded . | . . . . . Haulers Reinforced . | . . . . . Active Scanning Responses . | . . . . . Cargo Convoy Interrupts . | . . . . . Stealth | -11 -10 -10 -10 -9 --------- Run | Jun Mat Min Exi Min Distress Signals . | . . . . . Communications Jammed . | . . . . . Distress Signals . | . . . . . Times Spotted 30 | . 20 5 . 5 Peak Tracking Total 4 | . 4 3 . 3 Tactical Retreats 1 | . 1 . . . Traps | -11 -10 -10 -10 -9 ------- Run | Jun Mat Min Exi Min Traps Triggered 5 | . 5 . . . Indirectly . | . . . . . Trap Hack Attempts . | . . . . . Triggered . | . . . . . Disarmed . | . . . . . Reprogrammed . | . . . . . Reused . | . . . . . Traps Extracted . | . . . . . Installed . | . . . . . Triggered . | . . . . . Machines | -11 -10 -10 -10 -9 ---------- Run | Jun Mat Min Exi Min Machines Disabled 2 | . 1 . . 1 Max in Single Turn 1 | . 1 . . 1 Machines Repaired . | . . . . . Machines Sabotaged . | . . . . . Overloaded Fab Kills . | . . . . . Hacking | -11 -10 -10 -10 -9 --------- Run | Jun Mat Min Exi Min Machines Accessed 4 | . 4 . . . Terminals 3 | . 3 . . . Fabricators . | . . . . . Repair Stations 1 | . 1 . . . Recycling Units . | . . . . . Scanalyzers . | . . . . . Garrison Access . | . . . . . Total Hacks 9 | . 9 . . . Successful 5 | . 5 . . . Failed 4 | . 4 . . . Catastrophic 1 | . 1 . . . Database Lockouts . | . . . . . Manual 5 | . 4 . 1 . Terminals 7 | . 7 . . . Fabricators . | . . . . . Repair Stations 2 | . 2 . . . Recycling Units . | . . . . . Scanalyzers . | . . . . . Garrison Access . | . . . . . Terminal Hacks 2 | . 2 . . . Locate Traps 1 | . 1 . . . Hauler Manifests 1 | . 1 . . . Fabricator Hacks . | . . . . . Repair Station Hacks 2 | . 2 . . . Scan Component 1 | . 1 . . . Repair 1 | . 1 . . . Recycling Unit Hacks . | . . . . . Scanalyzer . | . . . . . Garrison Access Hacks . | . . . . . Unauthorized Hacks 1 | . 1 . . . Terminals 1 | . 1 . . . Botnet 1 | . 1 . . . Fabricators . | . . . . . Repair Stations . | . . . . . Recycling Units . | . . . . . Scanalyzers . | . . . . . Garrison Access . | . . . . . Data Cores Recovered . | . . . . . Used . | . . . . . Hacking Detections 3 | . 3 . . . Full Trace Events 1 | . 1 . . . Feedback Events . | . . . . . Feedback Blocked . | . . . . . Robot Schematics Acquired . | . . . . . Robots Built . | . . . . . Authchips . | . . . . . Time . | . . . . . Total Robot Build Rating . | . . . . . Part Schematics Acquired . | . . . . . Parts Built . | . . . . . Authchips . | . . . . . Time . | . . . . . Total Part Build Rating . | . . . . . Parts Repaired 1 | . 1 . . . Time 32 | . 32 . . . Parts Recycled . | . . . . . Recycled Matter . | . . . . . Retrieved Matter . | . . . . . Retrieved Components . | . . . . . Parts Scanalyzed . | . . . . . Part Schematics Acquired . | . . . . . Parts Damaged . | . . . . . Bothacking | -11 -10 -10 -10 -9 ------------ Run | Jun Mat Min Exi Min Used RIF Installer . | . . . . . Robots Hacked . | . . . . . Non-combat . | . . . . . Combat . | . . . . . Robot Hacks Applied . | . . . . . Relay Couplers Released . | . . . . . Fabnet Peak Effective % . | . . . . . Robots Rewired . | . . . . . Allies Hacked . | . . . . . Hacks Repelled . | . . . . . Allies | -11 -10 -10 -10 -9 -------- Run | Jun Mat Min Exi Min Total Allies 2 | . . 2 . . Largest Group 2 | . . 2 . . Highest-Rated Group 46 | . . 46 . . Highest-Rated Ally 31 | . . 31 . . Total Orders . | . . . . . Ally Attacks 18 | . . 18 . . Total Damage 249 | . . 249 . . Kills 5 | . . 5 . . Allies Corrupted . | . . . . . Allies Melted . | . . . . . Intel | -11 -10 -10 -10 -9 ------- Run | Jun Mat Min Exi Min Robot Analysis Total . | . . . . . Derelict Logs Recovered 1 | . . 1 . . Drone Launches . | . . . . . Drone Recoveries . | . . . . . Exploration | -11 -10 -10 -10 -9 ------------- Run | Jun Mat Min Exi Min Turns Passed 2522 | 72 1064 779 582 25 Spaces Moved 1600 | 55 618 511 406 10 Core 40 | 40 . . . . Treads . | . . . . . Legs . | . . . . . Wheels 1560 | 15 618 511 406 10 Hover . | . . . . . Flight . | . . . . . Fastest Speed 50 | 50 80 140 140 140 Average Speed 125 | 90 106 140 140 152 Slowest Speed 200 | 150 140 140 140 200 Overloaded Moves . | . . . . . Propulsion Burnouts . | . . . . . Robots Hopped . | . . . . . Cave-ins Triggered . | . . . . . Exploration Rate (%) 49 | 4 76 78 78 9 Regions Visited 4 Branch Regions 3 Pre-discovered Areas . | . . . . . Known Exits Taken . | . . . . . Unknown Exits Taken 4 | 1 1 1 1 . Scrap Searched 2 | . . 2 . . Spaces Dug . | . . . . . Terrain Destroyed 29 | . . . . 29 Melee . | . . . . . Projectile . | . . . . . AOE 29 | . . . . 29 Terrain Rammed . | . . . . . Walls Destroyed . | . . . . . Machines Disabled . | . . . . . Actions | -11 -10 -10 -10 -9 --------- Run | Jun Mat Min Exi Min Total 2039 | 76 959 564 424 16 Wait 311 | 5 276 30 . . Move 1596 | 54 617 510 405 10 Hop . | . . . . . Pick Up 42 | 8 16 11 6 1 Fast Attach 8 | 3 5 . . . Attach 13 | 4 1 2 5 1 Detach 4 | 1 . . 3 . Swap 7 | . 6 1 . . Drop 16 | 1 6 4 5 . Fire 42 | . 32 6 . 4 Melee . | . . . . . Ram . | . . . . . Kick . | . . . . . Crush . | . . . . . Escape Stasis . | . . . . . Rewire . | . . . . . Trap . | . . . . . Miscellaneous . | . . . . . Route ------- -11/Junkyard -10/Materials (discovered 3 exits: [*Mat x2] / [*Min]) -10/Mines (discovered 2 exits: [*Mat] / *Exi) -10/Exiles -9/Mines (discovered 1 exit: [*Mat]) History --------- Turn | Location | Event 17 | -11/Junkyard | Discovered new exit (range 16) 73 | -11/Junkyard | Entered Materials 91 | -10/Materials | Discovered new exit (range 9) 305 | -10/Materials | Build established: Mutant 337 | -10/Materials | Discovered new exit (range 16) 610 | -10/Materials | Discovered new exit (range 15) 681 | -10/Materials | Repaired Particle Gun 1137 | -10/Materials | Entered Mines 1495 | -10/Mines | Discovered new exit (range 7) 1547 | -10/Mines | Deemed a non-threat by the Exiles lab entrance 1548 | -10/Mines | Discovered new exit (range 5) 1916 | -10/Mines | Entered Exiles 1955 | -10/Exiles | Met 8R-AWN 1978 | -10/Exiles | Met EX-HEX 2014 | -10/Exiles | Met EX-BIN 2032 | -10/Exiles | Aligned with FarCom system 2034 | -10/Exiles | Given EX-Vault access code 2070 | -10/Exiles | Opened EX-Vault 2081 | -10/Exiles | Found Prototype Ballistic Gun 2082 | -10/Exiles | Identified AWS/Gauss 2085 | -10/Exiles | Found Prototype Energy Gun 2086 | -10/Exiles | Identified AWS/Thermal 2092 | -10/Exiles | Found Prototype Device 2093 | -10/Exiles | Identified PSU Rigger 2148 | -10/Exiles | Warned to stay clear of 0b10 Research branches 2187 | -10/Exiles | Met EX-DEC 2330 | -10/Exiles | Visited The Gauntlet 2482 | -10/Exiles | Discovered new exit (range 14) 2498 | -10/Exiles | Left Exiles lab with AWS/Thermal 2498 | -10/Exiles | Entered Mines 2499 | -9/Mines | Assembled infested the area 2514 | -9/Mines | Discovered new exit (range 15) 2517 | -9/Mines | Core integrity fell below 50% 2522 | -9/Mines | Core integrity fell below 20% 2523 | -9/Mines | Destroyed by D-53 Grenadier with Mini Grenade Launcher Last Messages --------------- squad. 02499_ S-10 Pest destroyed. 02499_ Destroyed Lgt. Ion Engine. 02499_ Core Extractor disabled. 02502_ System corrupted: Component data lost. 02503_ Destroyed Flight Unit. 02503_ S-10 Pest destroyed. 02505_ Destroyed Flight Unit. 02505_ S-10 Pest destroyed. 02513_ Acquired Flight Unit. 02514_ Acquired 12 matter. 02514_ EXIT=FOUND 02516_ Grenade Launcher destroyed. 02518_ The unstable cave ceiling collapses. 02519_ Lgt. Ion Engine destroyed. 02519_ Wheel destroyed. 02520_ R-06 Scavenger collects Seismic Detector. 02522_ The unstable cave ceiling collapses. 02522_ Wheel destroyed. 02523_ The unstable cave ceiling collapses. Map ----- +----------------------------------------------------+ | | | | | | | | | | | | | | | | | | | | | | | | | | | ?????????????????????????????????????????????????? | | ???????????????????????????#########?????????????? | | ???????????????????????????# #?????????????? | | ???????????????????????????# #?????????????? | | ??????????????????????????## #?????????????? | | ????????????????????????### ##????????????? | | ???????????????????????## ##???????????? | | ??????????????????????## #???????????? | | ?????????????????????## # #???????????? | | ?????????????????????# [ #???????????? | | ?????????????????????# #???????????? | | ?????????????????????# #???????????? | | ?????????????????????# @ ## #??????????? | | ?????????????????????# d #####??????????? | | ?????????????????????# d # ??????????? | | ????????????????????# ## ####?????????? | | ????????????????????## #?#####????????????? | | ?????????????????????# r #??????????????????? | | ?????????????????????# # < ##??????????????????? | | ????????????????????? ???????????????????? | | ???????????????????? ##??????????????????? | | ???????????????????# !%< ###???????????????????? | | ??????????????????? = #?????????????????????? | | ??????????????????### #????s????????????????? | | ?????????????????????? ####?????????????????????? | | ?????????????????????? #???????s?????????????????? | | ?????????????????????? ????????s?????????????????? | | ?????????????????????????????????????????????????? | | ?????????????????????????????????????????????????? | | ?????????????????????????????????????????????????? | | ?????????????????????????????????????????????????? | | ?????????????????????????????????????????????????? | | ?????????????????????????????????????????????????? | | ?????????????????????????????????????????????????? | | ?????????????????????????????????????????????????? | | ?????????????????????????????????????????????????? | | ?????????????????????????????????????????????????? | +----------------------------------------------------+ Best States ------------- Heat Dissipation 39 Energy Generation 10 Energy Capacity 250 Matter Stores 300 Matter Capacity 300 Sight Range 16 Terrain Scan Density 10 Evasion (%) 50 Item Schematics ----------------- None Robot Schematics ------------------ None Fabricated ------------ Nothing Alien Tech Used ----------------- None Achievements -------------- None Challenges ------------ None Game ------ Seed ShieldPropulsionShielding Manual? 0 Play Time 00:21:00 Cumulative 12.1 hours Start 2024.01.16 @ 20:57:53 End 2024.01.16 @ 21:32:46 Sessions 1 Manual Loads 0 Difficulty Rogue Special Mode None Game No. 43 Rogue 43 Adventurer 0 Explorer 0 Win Type - Total 0 Types 0/0/0/0/0/0/0/0/0 Lore% 17 Gallery% 24 Achievement% 23 Wizard Run 0 Options --------- ASCII 0 Keyboard 0 Movement Mouse Keybinds 1 Fullscreen 2 Font 18/SmallcapsGlow Map View 76x50 Tactical HUD 1 Map Filters SHIFT_HUE(270)|BRIGHTNESS(75) Filters SHIFT_HUE(90)|BRIGHTNESS(125) Steam 1 RUN: a23f078b-c2e7-4ed1-927a-996bd932cf3e